[Event "European Women-ch 2023"]
[Site "Petrovac"]
[Date "2023.03.27"]
[Round "9.27"]
[White "Pirvulescu, Ekaterina"]
[Black "Zhapova, Yana"]
[Result "0-1"]
[ECO "B13"]
[WhiteElo "2032"]
[BlackElo "2269"]
[Annotator "TA"]
[PlyCount "134"]
[EventDate "2023.03.15"]
[EventType "swiss"]
[EventCountry "MNE"]
[SourceTitle "playchess.com"]
[Source "ChessBase"]
[SourceQuality "1"]
[TimeControl "40/5400+30:1800+30"]

{[%evp 24,134,25,25,30,0,0,0,-7,-27,-24,-64,0,0,0,-22,-18,-22,-29,-79,-68,-109,-104,-139,-137,-169,-168,-368,-162,-164,-168,-168,-172,-170,-166,-240,-216,-222,-199,-210,-193,-216,-227,-217,-198,-191,-193,-197,-197,-214,-214,-237,-188,-187,-182,-164,-176,-184,-163,-424,-413,-424,-425,-1255,-1157,-1166,-1166,-1127,-1015,-12507,-6195,-29956,-29959,-29956,-29958,-29953,-29956,-29956,-29960,-29964,-29965,-29965,-29967,-29963,-29965,-29980,-29970,-29977,-8,-29957,-29962,-5710,-8,-8,-8,-8,0,-29978,-29979,-29979,-29980,-29979,-29980,-29981,-29982,-29982,-29983,-29983,-29984,-29984,-29985,-29985,-29986]} 1. e4 {[%emt 0:00:01]} c6 {[%emt 0:00:10]} 2. d4 {[%emt 0:00:06]} d5 {[%emt 0:00:15]} 3. exd5 {[%emt 0:00:07]} cxd5 {[%emt 0:00:05]} 4. Bd3 {[%emt 0:00:04]} Nc6 {[%emt 0:00:09]} 5. c3 {[%emt 0:00:07]} Nf6 {[%emt 0:00:08]} 6. Bf4 {[%emt 0:00:11]} Bg4 {[%emt 0:00:17]} 7. Qb3 {[%emt 0:00:04]} Qd7 {[%emt 0:00:17]} 8. Nd2 {[%emt 0:00:05][%cal Bb1d2,Bd2f3,Bf3e5][%mdl 32]} e6 {[%emt 0:00:17]} 9. Ngf3 {[%emt 0:00:04]} Bd6 {[%emt 0:00:22]} 10. Bxd6 {[%emt 0:00:04]} Qxd6 {[%emt 0:00:09]} 11. O-O {[%emt 0:00:04]} O-O {[%emt 0:00:11]} 12. Rae1 {[%emt 0:00:03]} Bxf3 {[%emt 0:02:20]} 13. Nxf3 {[%emt 0:00:04]} Rab8 {[%emt 0:00:34][%cal Ob7b5] B13: Caro-Kann: Exchange Variation and Panov-Botvinnik Attack.} 14. Qc2 {[%emt 0:05:31]} b5 {[%emt 0:04:47]} 15. Qd2 {[%emt 0:15:26]} b4 {[%emt 0:09:05] The position is equal.} 16. Ne5 {[%emt 0:10:45]} (16. Rc1 {simplifies} Rfc8 17. Rfe1 bxc3 18. Rxc3 Ne7 19. Rxc8+ Rxc8 20. g3) 16... Rfc8 {[%emt 0:02:13] [#]} 17. Qg5 $146 {[%emt 0:09:09]} (17. Re3 {simplifies} Rc7 18. Rc1 bxc3 19. bxc3 Qe7 20. Ree1) ({Predecessor:} 17. f4 bxc3 18. bxc3 Qa3 19. Rb1 Ne7 20. Rxb8 Rxb8 21. Rb1 Rxb1+ 22. Bxb1 Nc8 23. c4 {0-1 Hattendorf,J (2041)-Wronn,B (2207) Dresden ZMD op 2006 (8)}) 17... Ne7 {[%emt 0:05:08]} (17... bxc3 $15 18. bxc3 Rb2) 18. Re3 $11 {[%emt 0:05:50] Rg3 is the strong threat.} Ne4 {[%emt 0:12:06] Inhibits Rg3.} 19. Bxe4 {[%emt 0:07:50]} dxe4 {[%emt 0:00:07]} 20. Qh5 {[%emt 0:01:45]} (20. Rxe4 $2 f6 21. Qg3 fxe5 22. dxe5 Qd5 23. Rxb4 Rxb4 24. cxb4 Qxa2 $19) 20... g6 {[%emt 0:02:17]} 21. Qg5 {[%emt 0:06:24]} (21. Qh4 $1 $11 Nf5 22. Qf6) 21... Nd5 $17 {[%emt 0:07:45][%csl LRc3,LRe3] aiming for ...f6.} 22. Rh3 {[%emt 0:05:56] Black must now prevent Qh4.} f6 $1 {[%emt 0:04:49]} 23. Qh6 {[%emt 0:00:24]} Qe7 $36 {[%emt 0:05:49][%mdl 2048] Keeping White busy.} 24. Nxg6 {[%emt 0:11:22]} Qg7 {[%emt 0:00:32]} 25. Qxg7+ {[%emt 0:01:16]} Kxg7 {[%emt 0:00:06]} 26. Nh4 {[%emt 0:00:19]} bxc3 {[%emt 0:00:22]} 27. bxc3 {[%emt 0:00:04]} Rxc3 {[%emt 0:04:40]} 28. Rxc3 {[%emt 0:01:22]} Nxc3 $19 {[%emt 0:00:03][%mdl 4096] Endgame KRN-KRN} 29. g4 {[%emt 0:01:35]} (29. f3 {was worth a try.}) 29... Rd8 {[%emt 0:06:37]} (29... Nxa2 30. f3) 30. Re1 {[%emt 0:05:41]} Rxd4 {[%emt 0:00:28]} ({Stronger than} 30... Nxa2 31. Rxe4 Rd6 32. f4 $15 (32. d5 Nc3 $15)) 31. Ng2 {[%emt 0:01:17]} Rd2 {[%emt 0:11:53]} 32. Nf4 {[%emt 0:01:54]} e5 {[%emt 0:04:25]} ({Inferior is} 32... Nxa2 33. Nxe6+ Kf7 34. Nc5 $11) 33. Nh5+ {[%emt 0:02:40]} Kf7 {[%emt 0:05:39]} 34. a3 {[%emt 0:02:37]} Rd1 {[%emt 0:03:04]} 35. Rxd1 {[%emt 0:03:31]} Nxd1 {[%emt 0:00:06] KN-KN} 36. Ng3 {[%emt 0:01:11]} e3 {[%emt 0:01:14]} 37. f3 {[%emt 0:01:21]} a5 {[%emt 0:02:38][%cal Ba7a5,Ba5a4][%mdl 32] Strongly threatening ...a4.} 38. Kf1 {[%emt 0:00:53]} Nc3 {[%emt 0:00:21] And now ...a4 would win.} 39. Nf5 {[%emt 0:00:31]} e2+ {[%emt 0:01:00]} 40. Ke1 {[%emt 0:00:00]} Ke6 $1 {[%emt 0:00:00]} 41. Ne3 $2 {[%emt 0:04:35]} (41. Ng7+ {is a better defense.} Ke7 42. Nf5+ Ke6 43. Ng3) 41... a4 $1 {[%emt 0:02:36]} 42. h4 {[%emt 0:00:49]} Kd6 $1 {[%emt 0:03:33]} 43. g5 {[%emt 0:04:21]} (43. Nc4+ $142 Kc5 44. Nb2) 43... fxg5 {[%emt 0:02:29]} 44. hxg5 {[%emt 0:00:01]} Kc5 {[%emt 0:05:36] ...Kd4 would be deadly.} 45. Ng4 {[%emt 0:02:03]} Kd4 {[%emt 0:02:41]} 46. Kd2 {[%emt 0:02:41]} e4 {[%emt 0:06:32][%cal Be5e4,Be4e3][%mdl 32]} 47. f4 {[%emt 0:03:22] [#]} e3+ $1 {[%emt 0:00:51][%mdl 512]} 48. Ke1 {[%emt 0:07:00]} Ke4 {[%emt 0:02:01]} 49. Nf6+ {[%emt 0:01:36]} Kxf4 {[%emt 0:02:27]} 50. Nxh7 {[%emt 0:00:05]} Kf5 {[%emt 0:00:27]} 51. g6 {[%emt 0:04:19]} Kxg6 {[%emt 0:00:28]} 52. Nf8+ {[%emt 0:00:05]} Kf5 {[%emt 0:00:34]} 53. Nd7 {[%emt 0:00:52]} Ke4 {[%emt 0:00:51]} 54. Nb6 {[%emt 0:00:37]} Kd4 {[%emt 0:00:14]} 55. Nc4 {[%emt 0:00:51]} Kd3 $2 {[%emt 0:01:51]} (55... Nd5 {mates} 56. Nd6 Nf4 57. Nf5+ Ke4 58. Nxe3 Kd3 59. Kf2 e1=Q+ {[%mdl 64] Deflection} 60. Kxe1 Kxe3 61. Kd1 Kd3 62. Ke1 Ng2+ 63. Kd1 Ne3+ 64. Kc1 Nc4 65. Kb1 Nxa3+ 66. Ka2 Nc2 67. Kb2 Kd2 68. Ka2 Kc3 69. Kb1 a3 70. Ka2 Kb4 71. Kb1 Kb3 72. Kc1 a2 73. Kd2 a1=Q 74. Ke2 Qf6 75. Kd3 Qf3+ 76. Kd2 Qe3+ 77. Kd1 Qe1#) 56. Nb2+ $2 {[%emt 0:01:39][%mdl 8192] [#]} (56. Nb6 $11) 56... Ke4 $1 {[%emt 0:01:37]} 57. Nc4 {[%emt 0:00:22]} Kf3 $2 {[%emt 0:01:48]} (57... Nd5 $19 {( -> ...Nf4)} 58. Kxe2 Nf4+ 59. Kd1 e2+ 60. Kd2 Kf3 61. Ne5+ Kf2 62. Ng4+ Kg2) 58. Ne5+ $11 {[%emt 0:01:53]} Kf4 {[%emt 0:01:51][%cal Oc3b5]} (58... Kg3 $5 59. Nc4 $8 Kh2 $11) 59. Nc4 {[%emt 0:00:43]} Ke4 {[%emt 0:00:08] Threatens to win with ...Nd1.} 60. Nb2 {[%emt 0:02:55][%mdl 8192] Against Nd1} (60. Nb6 $11 Nb5 61. Nc4 Nd4 62. Nxe3 Kf3 63. Kd2 e1=Q+ {[%mdl 64] Deflection} 64. Kxe1 Kxe3 65. Kd1 Kd3 66. Kc1 Nb5 67. Kb1 Nxa3+ 68. Kc1 Nc2 69. Kb2 Kd2 70. Ka2 a3 71. Kb1 Kc3 72. Ka2 Kc4 73. Kb1 Kb3 74. Kc1 a2 75. Kd2 a1=Q 76. Ke2 Qf6 77. Kd3 Qf3+ 78. Kd2 Qe3+ 79. Kd1 Qe1#) 60... Kf3 {[%emt 0:00:30] Black mates.} 61. Nc4 {[%emt 0:00:11]} Nb5 {[%emt 0:00:36]} 62. Ne5+ {[%emt 0:00:31]} Ke4 {[%emt 0:00:15]} 63. Nc4 {[%emt 0:00:21] [#]} Nd4 $1 {[%emt 0:00:43]} 64. Nxe3 {[%emt 0:00:46]} Kd3 {[%emt 0:00:24]} 65. Kf2 {[%emt 0:00:26] [#]} e1=Q+ $1 {[%emt 0:00:53][%mdl 576] Deflection} 66. Kxe1 {[%emt 0:00:08]} Kxe3 {[%emt 0:00:04]} 67. Kd1 {[%emt 0:00:18]} Kd3 {[%emt 0:00:04] Weighted Error Value: White=0.68/Black=0.18 (very precise)} 0-1

[Event "European Women-ch 2023"]
[Site "Petrovac"]
[Date "2023.03.27"]
[Round "9.28"]
[White "Ibrahimova, Sabina"]
[Black "Koljevic, Nikolina"]
[Result "0-1"]
[ECO "B15"]
[WhiteElo "2207"]
[BlackElo "2042"]
[Annotator "TA"]
[PlyCount "92"]
[EventDate "2023.03.15"]
[EventType "swiss"]
[EventCountry "MNE"]
[SourceTitle "playchess.com"]
[Source "ChessBase"]
[SourceQuality "1"]
[TimeControl "40/5400+30:1800+30"]

{[%evp 17,92,36,40,24,24,18,8,16,55,50,58,52,52,48,70,66,205,173,290,282,456,82,79,66,102,20,13,6,26,-18,-18,-40,-31,-36,-41,-89,-84,-164,-164,-444,-433,-440,-433,-676,-369,-347,-343,-477,-473,-520,-346,-346,-339,-318,-286,-314,-287,-303,-223,-229,-222,-222,-200,-966,-380,-908,0,-883,-839,-1082,-1060,-1014,-879,-839,-839,-909,-870]} 1. e4 {[%emt 0:00:11]} c6 {[%emt 0:00:10]} 2. d4 {[%emt 0:00:14]} d5 {[%emt 0:00:07]} 3. Nc3 {[%emt 0:00:26]} dxe4 {[%emt 0:00:38]} 4. Nxe4 {[%emt 0:00:06]} Nf6 {[%emt 0:00:49]} 5. Nxf6+ {[%emt 0:03:01]} exf6 {[%emt 0:00:10]} 6. c3 {[%emt 0:00:13]} Bd6 {[%emt 0:03:14]} 7. Bd3 {[%emt 0:00:10]} O-O {[%emt 0:00:37]} 8. Qc2 {[%emt 0:00:11]} h6 {[%emt 0:01:11]} 9. Ne2 {[%emt 0:00:44][%cal Bg1e2,Be2g3,Bg3f5][%mdl 32]} Qc7 {[%emt 0:01:01]} 10. Be3 {[%emt 0:01:07] B15: Caro-Kann: 3 Nc3: 3...g6 and 3...dxe4 4 Nxe4 Nf6 5 Nxf6+ exf6.} Nd7 {[%emt 0:02:06]} 11. Qd2 {[%emt 0:03:22][%cal Oe3h6]} Re8 {[%emt 0:04:10]} 12. Ng3 {[%emt 0:01:13] The position is equal.} Bf4 {[%emt 0:04:05]} 13. O-O {[%emt 0:02:49][%cal Bh1f1,Bf1f2,Bf2f5][%mdl 32]} Bxe3 {[%emt 0:03:06]} 14. fxe3 {[%emt 0:00:08]} Nf8 {[%emt 0:00:50]} 15. Rf2 {[%emt 0:04:59] [#]} Bg4 $146 {[%emt 0:23:25]} ({Predecessor:} 15... Qe7 16. e4 Be6 17. a3 c5 18. Raf1 cxd4 19. cxd4 Ng6 20. d5 Bg4 21. Rc1 Rac8 {0-1 Asztalos,L-Nimzowitsch,A Bled International 1931 (10)}) 16. Raf1 {[%emt 0:05:59]} h5 {[%emt 0:08:35]} (16... Rad8 $14) 17. Nf5 {[%emt 0:11:03][%cal Of5g7]} Ne6 {[%emt 0:03:30]} (17... Nd7 {was called for.} 18. e4 Bxf5 19. Rxf5 c5) 18. e4 $18 {[%emt 0:04:21]} c5 $2 {[%emt 0:02:25]} (18... Bxf5 {was necessary.} 19. Rxf5 Qb6) 19. d5 $2 {[%emt 0:11:21]} (19. Nh6+ $1 $18 gxh6 20. Qxh6) 19... Bxf5 $16 {[%emt 0:04:52]} 20. Rxf5 {[%emt 0:08:21] And now e5 would win.} Ng5 {[%emt 0:06:29]} 21. R1f4 {[%emt 0:06:01]} (21. e5 $16 Rxe5 22. d6 Qxd6 23. Rxg5) 21... c4 $11 {[%emt 0:03:09]} 22. Bb1 {[%emt 0:01:52]} Rad8 {[%emt 0:00:24]} 23. Qc1 {[%emt 0:08:13]} Rd6 {[%emt 0:03:45]} 24. Rh4 $1 {[%emt 0:03:39]} g6 $36 {[%emt 0:01:03][%mdl 2048] Black has the initiative.} 25. Rf1 {[%emt 0:01:30]} Re5 $1 {[%emt 0:00:54]} 26. Rhf4 {[%emt 0:05:47] [#]} (26. Qd2 $15) 26... Qe7 $1 $17 {[%emt 0:03:46][%cal Rg5e4] Black is much more active.} 27. Qc2 {[%emt 0:00:30] [#]} (27. Qe3 $17 Rexd5 28. Rxf6 (28. Qxa7 Rd1 $17) (28. h4 Nh7 $17)) 27... f5 $1 $19 {[%emt 0:09:43][%cal Rg5e4]} 28. exf5 {[%emt 0:00:09]} (28. Qa4 {might work better.}) 28... Re2 {[%emt 0:00:02]} 29. Qc1 {[%emt 0:02:48] aiming for fxg6.} Nh3+ $1 {[%emt 0:00:36][%mdl 64] Double Attack} 30. Kh1 {[%emt 0:02:25]} (30. gxh3 $142 Qg5+ 31. Rg4 Qxc1 32. Rxc1 hxg4 33. hxg4) 30... Nxf4 {[%emt 0:00:04]} 31. Qxf4 {[%emt 0:00:05]} Qe5 {[%emt 0:03:14]} (31... Rxb2 $2 32. fxg6 fxg6 33. Qxc4 $19) 32. Qxc4 {[%emt 0:00:41]} Re1 {[%emt 0:04:29] Strongly threatening ...b5.} (32... Rxb2 33. fxg6 fxg6 34. Qc8+ Kh7 35. c4 $19) 33. h3 {[%emt 0:06:02]} (33. fxg6 $2 Rf6 34. gxf7+ Rxf7) 33... Rxf1+ {[%emt 0:01:53]} (33... Rxd5 34. fxg6 fxg6 35. Qc8+ (35. Bxg6 $2 Kg7 $19) 35... Qe8 36. Qxe8+ (36. Qxb7 $2 Rxf1+ 37. Kh2 Qe5+ 38. g3 Qe2#) 36... Rxe8 37. Bxg6 $17) 34. Qxf1 {[%emt 0:00:06]} Qxd5 {[%emt 0:00:22][%mdl 4096] Endgame White must now prevent ...Qd1. KQR-KQB} (34... Rxd5 35. fxg6 f6 36. Bd3 $17) 35. Bc2 {[%emt 0:01:08] Dodges Qd1} Rf6 {[%emt 0:01:39]} (35... Qxa2 36. fxg6 Kg7 37. gxf7 Qxf7 38. Qe1 $17) 36. Qf4 {[%emt 0:01:10]} Kg7 {[%emt 0:00:45]} ({Not} 36... gxf5 37. Qg5+ Rg6 38. Qxg6+ fxg6 39. Bb3 $15) 37. c4 {[%emt 0:04:51]} Qa5 {[%emt 0:00:19]} 38. Qd4 {[%emt 0:01:10]} Qe1+ {[%emt 0:00:48]} ({Inferior is} 38... Qxa2 39. fxg6 Qa1+ 40. Kh2) (38... gxf5 39. Bd1) 39. Kh2 {[%emt 0:00:07]} h4 {[%emt 0:00:42]} 40. Qxa7 $2 {[%emt 0:00:00]} (40. Be4) 40... Qg3+ $2 {[%emt 0:00:00]} (40... Qe2 41. Qd4 Qxc2 42. fxg6 fxg6) 41. Kg1 $2 {[%emt 0:02:20]} (41. Kh1 b6 42. Qa3 (42. Qe7 $2 gxf5 43. Ba4 Re6 $19)) 41... Qe1+ {[%emt 0:01:52]} 42. Kh2 {[%emt 0:00:09]} Qe5+ {[%emt 0:00:16] Black is clearly winning.} 43. Kh1 {[%emt 0:03:23]} Qxb2 {[%emt 0:00:17]} 44. Qa4 {[%emt 0:02:08]} Ra6 {[%emt 0:04:22]} 45. Qb3 {[%emt 0:00:26]} Rxa2 {[%emt 0:01:55] ( -> ...Ra1+)} 46. f6+ {[%emt 0:00:06]} Kxf6 {[%emt 0:03:14] Quite a comeback for Black.   Weighted Error Value: White=0.80/Black=0.60} 0-1